fUSD/lending_fUSD_20240715
["ID","MTS","AMOUNT","RATE_DAILY","PERIOD"]
[332218507,1721045438393,-437.70943335,0.00011199,2]
[332218508,1721045438404,-1153.81037289,0.00011199,2]
[332218509,1721045438415,-1057.27437,0.00011199,2]
[332218510,1721045438473,-84348.39089758,0.00011199,2]
[332218511,1721045438486,-253.90437755,0.00011199,2]
[332218512,1721045438528,-337.129035,0.00011199,2]
[332218513,1721045438539,-3320.0,0.00011199,2]
[332218517,1721045440201,-1997.0,0.00011199,2]
[332218518,1721045440466,-1758.87498388,0.00011199,2]
[332218519,1721045440479,-3100.09378254,0.00011199,2]
[332218520,1721045440624,-669.20500002,0.00011199,2]
[332218797,1721045443257,-1951.7229507,0.00011199,2]
[332218799,1721045443266,-9529.32711763,0.00011199,2]
[332218801,1721045443276,-15451.9318012,0.00011199,2]
[332218804,1721045443285,-250.0,0.00012691,2]
[332218806,1721045443294,-5584.21,0.00012732,2]
[332218809,1721045443304,-250.0,0.00012772,2]
[332218812,1721045443313,-182.65,0.00012885,2]
[332218814,1721045443322,-800.0,0.00012979,2]
[332218816,1721045443331,-214.34,0.00012995,2]
[332218818,1721045443342,-1250.0,0.00013,2]
[332218819,1721045443351,-616.33,0.00013125,2]
[332218821,1721045443360,-1538.26608865,0.00013128,2]
[332218823,1721045443369,-408.54,0.00013174,2]
[332218825,1721045443378,-200.0,0.00013238,2]
[332218827,1721045443387,-994.0,0.00013448,2]
[332218829,1721045443396,-164.740526,0.00013498,2]
[332218831,1721045443406,-154.145393,0.00013498,2]
[332218833,1721045443415,-809.0,0.0001353,2]
[332218835,1721045443424,-619.0,0.0001353,2]
[332218837,1721045443433,-444.0,0.0001353,2]
[332218839,1721045443445,-576.732,0.0001353,2]
[332218841,1721045443455,-1790.76,0.0001353,2]
[332218843,1721045443466,-24165.93542742,0.0001366,2]
[332218845,1721045443477,-826.25901472,0.0001366,2]
[332218847,1721045443490,-5006.19235786,0.0001366,2]
[332218849,1721045443499,-197.85,0.00013699,2]
[332218851,1721045443508,-2088.02473579,0.00013849,2]
[332218853,1721045443518,-500.0,0.00013888,2]
[332218854,1721045443527,-200.0,0.00013888,2]
[332218856,1721045443536,-500.0,0.00013899,2]
[332218858,1721045443546,-500.0,0.00013899,2]
[332218860,1721045443555,-500.0,0.00013899,2]
[332218862,1721045443564,-500.0,0.00013899,2]
[332218864,1721045443573,-500.0,0.00013899,2]
[332218866,1721045443582,-500.0,0.00013899,2]
[332218868,1721045443591,-500.0,0.00013899,2]
[332218870,1721045443600,-500.0,0.00013899,2]
[332218872,1721045443609,-500.0,0.00013899,2]
[332218873,1721045443618,-1099.32,0.00013899,2]
[332218875,1721045443627,-1206.78,0.00013899,2]
[332218877,1721045443636,-500.0,0.00013899,2]
[332218879,1721045443645,-160.38940491,0.000139,2]
[332218881,1721045443657,-16634.61629385,0.000139,2]
[332218884,1721045443673,-257.2999997,0.000139,2]
[332218886,1721045443684,-523.44,0.000139,2]
[332218888,1721045443695,-5975.35005171,0.000139,2]
[332218890,1721045443706,-966.54999995,0.000139,2]
[332218893,1721045443724,-7222.27482018,0.000139,2]
[332219136,1721045446151,-619.76020313,0.00011098,2]
[332219143,1721045446206,-591.5645175,0.00011098,2]
[332219145,1721045446220,-704.8,0.00011098,2]
[332219148,1721045446231,-1161.45086125,0.00011098,2]
[332219150,1721045446241,-1085.90856546,0.00012691,2]
[332219151,1721045446251,-158.75541604,0.00013543,2]
[332219153,1721045446260,-3178.06896856,0.000139,2]
[332219156,1721045446271,-1412.93673964,0.000139,2]
[332219158,1721045446282,-2990.778085,0.000139,2]
[332219161,1721045446300,-21708.48171763,0.000139,2]
[332219169,1721045446367,-1175.55550787,0.000139,2]
[332219176,1721045446423,-400.605111,0.000139,2]
[332219177,1721045446432,-45.66486425,0.000139,2]
[332219180,1721045446445,-954.33513575,0.000139,2]
[332219181,1721045446456,-1000.0,0.000139,2]
[332219183,1721045446467,-287.20062402,0.00013954,2]
[332219185,1721045446477,-500.0,0.00013954,2]
[332219187,1721045446488,-500.0,0.00013954,2]
[332219189,1721045446497,-500.0,0.00013954,2]
[332219191,1721045446506,-500.0,0.00013954,2]
[332219193,1721045446515,-1099.32,0.00013954,2]
[332219195,1721045446525,-1206.78,0.00013954,2]
[332219197,1721045446535,-500.0,0.00013954,2]
[332219199,1721045446544,-170.59,0.00013988,2]
[332219201,1721045446553,-191.2063498,0.00013988,2]
[332219203,1721045446563,-523.186584,0.00013988,2]
[332219205,1721045446571,-512.54402297,0.00013988,2]
[332219207,1721045446580,-504.98312244,0.00013988,2]
[332219209,1721045446590,-503.94005351,0.00013988,2]
[332219211,1721045446599,-384.80261456,0.00013988,2]
[332219213,1721045446608,-604.6,0.00013988,2]
[332219215,1721045446618,-178.41640975,0.00013989,2]
[332219217,1721045446627,-27797.5758558,0.00013995,2]
[332219219,1721045446636,-4761.9631135,0.00013995,2]
[332219221,1721045446645,-5450.3014658,0.00013995,2]
[332219223,1721045446655,-484.3533457,0.00013995,2]
[332219225,1721045446663,-1950.4451197,0.00013995,2]
[332219246,1721045446854,-974.1394214,0.00013995,2]
[332219248,1721045446863,-500.0,0.00013997,2]
[332219250,1721045446873,-177.32821985,0.00013997,2]
[332219252,1721045446882,-500.0,0.00013997,2]
[332219253,1721045446891,-1951.243309,0.00013998,2]
[332219254,1721045446900,-781.19382345,0.00013998,2]
[332219257,1721045653455,10000.0,0.0002,30]
[332219289,1721046632477,-386.85,0.00010816,2]
[332219290,1721046632487,-665.75047608,0.00011098,2]
[332219291,1721046632590,-2410.59287746,0.00011098,2]
[332219292,1721046632600,-1258.55473363,0.00011098,2]
[332219293,1721046632609,-220.87823333,0.00011098,2]
[332219294,1721046632758,-544.77441089,0.00011098,2]
[332219295,1721046632767,-561.10372162,0.00011098,2]
[332219296,1721046632776,-164.03533166,0.00011098,2]
[332219297,1721046632785,-1984.78330199,0.00011098,2]
[332219298,1721046632794,-10145.2113211,0.00011199,2]
[332219299,1721046632803,-209.96997035,0.00011199,2]
[332219300,1721046632813,-492.55741441,0.00012314,2]
[332219301,1721046632822,-258.42817609,0.00012483,2]
[332219309,1721046638369,-288.12424113,0.00012483,2]
[332219310,1721046638381,-1220.773,0.00012483,2]
[332219311,1721046638434,-739.88061847,0.00012483,2]
[332219312,1721046638446,-540.65357155,0.00012483,2]
[332219313,1721046638598,-15203.03039276,0.00012483,2]
[332219314,1721046638609,-171.47,0.00012727,2]
[332219315,1721046638618,-250.0,0.00012743,2]
[332219316,1721046638627,-1053.0,0.00012808,2]
[332219317,1721046638637,-198.23,0.00012902,2]
[332219318,1721046638646,-2088.18460724,0.00012902,2]
[332219319,1721046638657,-25401.28539276,0.00012902,2]
[332219321,1721046638666,-417.0,0.00013,2]
[332219323,1721046638676,-300.0,0.00013,4]
[332219325,1721046638685,-1000.0,0.00013059,2]
[332219326,1721046638694,-299.99,0.00013059,2]
[332219328,1721046638706,-466.09,0.00013059,2]
[332219330,1721046638715,-386.85,0.0001308,2]
[332219332,1721046638724,-600.0,0.000131,4]
[332219334,1721046638733,-371.1851228,0.00013128,2]
[332219336,1721046638742,-1000.0,0.000132,4]
[332219338,1721046638751,-1300.0,0.000133,4]
[332219340,1721046638761,-1700.0,0.000134,4]
[332219342,1721046638770,-154.145393,0.00013498,2]
[332219344,1721046638779,-221.561093,0.00013498,2]
[332219346,1721046638788,-300.0,0.000135,4]
[332219348,1721046638798,-9708.53205931,0.0001358,2]
[332219350,1721046638807,-300.0,0.000136,4]
[332219352,1721046638816,-182.15,0.00013699,2]
[332219354,1721046638826,-250.0,0.00013699,2]
[332219356,1721046638835,-300.0,0.000137,5]
[332219358,1721046638844,-216.10312204,0.00013789,2]
[332219359,1721046638853,-311.39549349,0.00013789,2]
[332219362,1721046638863,-163.93512621,0.00013795,2]
[332219364,1721046638873,-300.0,0.000138,5]
[332219366,1721046638883,-163.9351262,0.0001383,2]
[332219367,1721046638892,-685.81454762,0.00013849,2]
[332219368,1721046638901,-155.0,0.00013849,2]
[332219370,1721046638911,-163.9351262,0.00013865,2]
[332219371,1721046638920,-1719.42,0.0001387,2]
[332219372,1721046638929,-1719.42,0.0001387,2]
[332219373,1721046638939,-1719.42,0.0001387,2]
[332219374,1721046638948,-273.09054927,0.0001387,2]
[332219375,1721046638960,-930.71217099,0.00013877,2]
[332219376,1721046638969,-500.0,0.00013879,2]
[332219377,1721046638979,-4104.06440372,0.0001388,2]
[332219378,1721046640409,-1076.37151865,0.0001388,2]
[332219379,1721046640420,-2818.80991683,0.0001388,2]
[332219380,1721046640469,-3847.00755287,0.0001388,2]
[332219381,1721046640481,-53696.38772876,0.0001388,2]
[332219382,1721046640492,-5052.1332027,0.0001388,2]
[332219383,1721046640503,-566.18888113,0.0001388,2]
[332219384,1721046640528,-361.31419077,0.0001388,2]
[332219385,1721046640542,-8214.370302,0.0001388,2]
[332219386,1721046640588,-819.45729106,0.0001388,2]
[332219387,1721046640615,-5373.89872731,0.0001388,2]
[332219388,1721046640646,-9442.3382266,0.0001388,2]
[332219389,1721046640706,-260.78758579,0.0001388,2]
[332219390,1721046640717,-37214.59040144,0.0001388,2]
[332219553,1721046643489,-1821.19232402,0.0001388,2]
[332219554,1721046643654,-2051.96602235,0.0001388,2]
[332219555,1721046643715,-31400.0,0.0001388,2]
[332219605,1721046646529,-585.21992678,0.00013759,2]
[332219613,1721046646643,-100.59462084,0.00013759,2]
[332219615,1721046646653,-474496.44188093,0.0001388,2]
[332219617,1721046646663,-316.78,0.0001389,3]
[332219619,1721046646672,-320.7418,0.00013895,2]
[332219621,1721046646681,-31564.4208,0.00013898,2]
[332219623,1721046646690,-500.0,0.00013899,2]
[332219625,1721046646699,-238.47808431,0.00013899,2]
[332219627,1721046646709,-3025.9025,0.000139,2]
[332219629,1721046646719,-1000.0,0.000139,2]
[332219631,1721046646728,-723.0,0.000139,5]
[332219633,1721046646738,-163.9351262,0.000139,2]
[332219635,1721046646747,-1521.0,0.000139,2]
[332219637,1721046646756,-500.0,0.0001393,2]
[332219639,1721046646765,-500.0,0.0001393,2]
[332219641,1721046646774,-500.0,0.0001393,2]
[332219643,1721046646783,-500.0,0.0001393,2]
[332219644,1721046646792,-500.0,0.0001393,2]
[332219646,1721046646802,-370.7711,0.0001393,2]
[332219647,1721046646811,-500.0,0.0001393,2]
[332219648,1721046646821,-500.0,0.0001393,2]
[332219649,1721046646830,-500.0,0.0001393,2]
[332219650,1721046646839,-500.0,0.0001393,2]
[332219651,1721046646849,-500.0,0.0001393,2]
[332219652,1721046646858,-500.0,0.0001393,2]
[332219653,1721046646868,-500.0,0.0001393,2]
[332219654,1721046646877,-500.0,0.0001393,2]
[332219655,1721046646886,-500.0,0.0001393,2]
[332219656,1721046646895,-354.5769,0.0001393,2]
[332219657,1721046646905,-192.2,0.00013934,2]
[332219658,1721046646914,-500.0,0.00013954,2]
[332219659,1721046646923,-195.74513206,0.0001396,2]
[332219660,1721046646932,-1719.42,0.00013987,2]
[332219661,1721046646942,-155.0,0.00013989,2]
[332219662,1721046646952,-1719.42,0.0001399,2]
[332219663,1721046646962,-1719.42,0.0001399,2]
[332219664,1721046646971,-1719.42,0.0001399,2]
[332219665,1721046646980,-1719.42,0.0001399,2]
[332219666,1721046646990,-1719.42,0.0001399,2]
[332219667,1721046647000,-1719.42,0.0001399,2]
[332219668,1721046647010,-500.0,0.00013994,2]
[332219669,1721046647020,-500.0,0.00013994,2]
[332219670,1721046647029,-500.0,0.00013994,2]
[332219671,1721046647039,-210.43807229,0.00013994,2]
[332219672,1721046647052,-6335.3168975,0.00013995,2]
[332219673,1721046647062,-3567.3348627,0.00013995,2]
[332219674,1721046647071,-40181.2833528,0.00013995,2]
[332219675,1721046647080,-500.0,0.00013997,2]
[332219676,1721046647091,-617.3,0.00013997,2]
[332219677,1721046647101,-500.0,0.00013997,2]
[332219678,1721046647111,-1106.21,0.00013997,2]
[332219679,1721046647122,-500.0,0.00013997,2]
[332219680,1721046647132,-7445.69736792,0.00013997,2]
[332219681,1721046647141,-2145.67114055,0.00013998,2]
[332219682,1721046647150,-3902.486619,0.00013998,2]
[332219683,1721046647159,-4878.108274,0.00013998,2]
[332219684,1721046647169,-6829.351584,0.00013998,2]
[332219685,1721046647178,-7804.973239,0.00013998,2]
[332219686,1721046647188,-579.41,0.00013998,2]
[332219687,1721046647197,-500.0,0.00013998,2]
[332219688,1721046647207,-500.0,0.00013998,2]
[332219689,1721046647219,-500.0,0.00013998,2]
[332219690,1721046647228,-500.0,0.00013998,2]
[332219691,1721046647237,-500.0,0.00013998,2]
[332219692,1721046647247,-500.0,0.00013998,2]
[332219693,1721046647256,-1007.71,0.00013998,2]
[332219694,1721046647266,-1975.11,0.00013998,2]
[332219695,1721046647275,-3000.0,0.00013998,2]
[332219696,1721046647284,-500.0,0.00013998,2]
[332219697,1721046647293,-185.1,0.00013999,2]
[332219698,1721046647303,-201.30121332,0.00013999,2]
[332219699,1721046647312,-504.52552813,0.00013999,2]
[332219700,1721046647322,-542.04,0.00013999,2]
[332219701,1721046647331,-500.0,0.00013999,2]
[332219702,1721046647340,-500.0,0.00013999,2]
[332219703,1721046647349,-516.85284242,0.00013999,2]
[332219704,1721046647359,-703.03,0.00013999,2]
[332219705,1721046647368,-500.0,0.00013999,2]
[332219706,1721046647378,-504.15426399,0.00013999,2]
[332219707,1721046647387,-500.0,0.00013999,2]
[332219708,1721046647396,-500.0,0.00013999,2]
[332219709,1721046647405,-500.0,0.00013999,2]
[332219710,1721046647415,-500.0,0.00013999,2]
[332219711,1721046647423,-500.0,0.00013999,2]
[332219712,1721046647433,-511.28513027,0.00013999,2]
[332219713,1721046647443,-500.0,0.00013999,2]
[332219714,1721046647452,-500.0,0.00013999,2]
[332219715,1721046647462,-500.0,0.00013999,2]
[332219716,1721046647472,-500.0,0.00013999,2]
[332219717,1721046647481,-580.9019058,0.00013999,2]
[332219718,1721046647491,-500.0,0.00013999,2]
[332219719,1721046647502,-500.0,0.00013999,2]
[332219720,1721046647511,-1184.11485978,0.00013999,2]
[332219721,1721046647520,-227.92524217,0.00013999,2]
[332219722,1721046647529,-5068.31787137,0.00014,2]
[332219723,1721046647539,-122632.90480523,0.00014,2]
[332219724,1721046647549,-89725.76505565,0.00014,2]
[332219733,1721047436904,448.0,0.00027,120]
[332219734,1721047524465,2017.9,0.00027,120]
[332219772,1721047832299,-382.64,0.0001072,2]
[332219774,1721047832308,-300.0,0.00011097,2]
[332219776,1721047832318,-258.62867698,0.00011098,2]
[332219780,1721047832353,-699.77129228,0.00011098,2]
[332219782,1721047832364,-225.71489052,0.00011098,2]
[332219784,1721047832374,-1984.78330199,0.00011098,2]
[332219786,1721047832383,-174.13426505,0.00011098,2]
[332219788,1721047832393,-691.88678279,0.00011098,2]
[332219789,1721047832402,-171.47,0.00012347,2]
[332219790,1721047832412,-157.39,0.00012486,2]
[332219791,1721047832422,-157.39,0.00012502,2]
[332219792,1721047832432,-250.0,0.00012509,2]
[332219793,1721047832442,-157.39,0.00012517,2]
[332219794,1721047832451,-157.39,0.00012533,2]
[332219795,1721047832461,-157.39,0.00012549,2]
[332219796,1721047832470,-198.23,0.00012709,2]
[332219797,1721047832480,-178.21,0.0001285,2]
[332219798,1721047832489,-3133.07,0.00012922,2]
[332219799,1721047832503,-382.64,0.00012984,2]
[332219800,1721047832514,-1250.0,0.00013,2]
[332219801,1721047832523,-183.53,0.00013039,2]
[332219802,1721047832533,-419.67,0.00013041,2]
[332219803,1721047832543,-832.71,0.00013041,2]
[332219804,1721047832553,-371.1851228,0.00013128,2]
[332219805,1721047832563,-155.0,0.00013128,2]
[332219806,1721047832574,-832.71,0.00013141,2]
[332219807,1721047832584,-419.67,0.00013141,2]
[332219808,1721047832593,-419.67,0.00013141,2]
[332219809,1721047832602,-832.71,0.00013141,2]
[332219810,1721047832612,-832.71,0.00013141,2]
[332219811,1721047832622,-419.67,0.00013141,2]
[332219812,1721047832632,-832.71,0.00013141,2]
[332219813,1721047832642,-418.64,0.00013141,2]
[332219814,1721047832652,-832.71,0.00013141,2]
[332219815,1721047832662,-832.71,0.00013141,2]
[332219816,1721047832671,-186.95,0.00013141,2]
[332219817,1721047832682,-150.0,0.00013147,2]
[332219818,1721047832692,-1706.05925036,0.00013148,2]
[332219819,1721047832704,-6319.02588057,0.00013148,2]
[332219820,1721047832716,-12.16394995,0.00013148,2]
[332219821,1721047832726,-1000.0,0.00013253,2]
[332219822,1721047832736,-174.19,0.00013278,2]
[332219823,1721047832746,-1631.81375129,0.00013472,2]
[332219825,1721047832756,-152.238972,0.00013498,2]
[332219827,1721047832766,-189.707527,0.00013498,2]
[332219829,1721047832776,-1000.0,0.00013679,2]
[332219831,1721047832786,-1838.7809,0.0001368,2]
[332219833,1721047832795,-10023.6389,0.0001368,2]
[332219834,1721047832805,-34411.7506,0.0001368,2]
[332219835,1721047832815,-1464.4626,0.0001368,2]
[332219836,1721047832825,-349.89,0.00013699,2]
[332219837,1721047832835,-250.0,0.00013699,2]
[332219838,1721047832845,-1878.95,0.00013699,2]
[332219839,1721047832855,-345.52,0.00013699,2]
[332219840,1721047832864,-326.77,0.00013699,2]
[332219841,1721047832873,-319.58875706,0.00013717,2]
[332219842,1721047832883,-202.11866718,0.00013734,2]
[332219843,1721047832893,-202.11866717,0.00013776,2]
[332219844,1721047832902,-500.0,0.00013779,2]
[332219845,1721047832912,-274.24861224,0.00013779,2]
[332219846,1721047832921,-736.43,0.00013779,2]
[332219847,1721047832934,-500.0,0.00013779,2]
[332219848,1721047832944,-222.7,0.00013779,2]
[332219849,1721047832954,-500.0,0.00013779,2]
[332219850,1721047832963,-346.64213393,0.00013779,2]
[332219851,1721047832973,-358.10013249,0.00013779,2]
[332219852,1721047832982,-500.0,0.00013779,2]
[332219853,1721047832992,-500.0,0.00013779,2]
[332219854,1721047833002,-219.79550471,0.00013779,2]
[332219855,1721047833011,-500.0,0.00013779,2]
[332219856,1721047833021,-500.0,0.00013779,2]
[332219857,1721047833031,-354.5,0.00013779,2]
[332219858,1721047833041,-500.0,0.00013779,2]
[332219859,1721047833051,-500.0,0.00013779,2]
[332219860,1721047833062,-500.0,0.00013779,2]
[332219861,1721047833072,-500.0,0.00013779,2]
[332219862,1721047833083,-503.07907077,0.00013779,2]
[332219863,1721047833093,-289.23,0.00013779,2]
[332219864,1721047833104,-1114.42,0.00013779,2]
[332219865,1721047833113,-500.0,0.00013779,2]
[332219866,1721047833123,-1015.41,0.00013779,2]
[332219867,1721047833133,-171.57,0.00013779,2]
[332219868,1721047833142,-1892.81,0.00013779,2]
[332219869,1721047833152,-500.0,0.00013779,2]
[332219870,1721047833163,-39483.4685,0.0001378,2]
[332219871,1721047833173,-500.0,0.0001378,2]
[332219872,1721047833186,-100000.0,0.0001378,2]
[332219873,1721047833195,-166192.24978024,0.0001378,2]
[332219874,1721047833208,-418.90217464,0.0001378,2]
[332219875,1721047833221,-315.04,0.0001378,2]
[332219876,1721047833232,-838.95176853,0.0001378,2]
[332219877,1721047833243,-271.2999999,0.0001378,2]
[332219878,1721047833254,-781.95019923,0.0001378,2]
[332219879,1721047833266,-2130.44985288,0.0001378,2]
[332219880,1721047833278,-827.13712285,0.0001378,2]
[332219881,1721047833289,-821.72,0.0001378,2]
[332219882,1721047833301,-700.55778958,0.0001378,2]
[332219883,1721047833313,-600.0,0.0001378,2]
[332219884,1721047833326,-48370.46751215,0.0001378,2]
[332219885,1721047833335,-202.11866717,0.00013817,2]
[332219886,1721047833345,-153.34312105,0.00013834,2]
[332219887,1721047833354,-736.43,0.00013834,2]
[332219888,1721047833364,-500.0,0.00013834,2]
[332219889,1721047833374,-500.0,0.00013834,2]
[332219890,1721047833384,-500.0,0.00013834,2]
[332219891,1721047833394,-500.0,0.00013834,2]
[332219892,1721047833404,-329.65,0.00013834,2]
[332219893,1721047833413,-340.21760106,0.00013834,2]
[332219894,1721047833423,-500.0,0.00013834,2]
[332219895,1721047833433,-500.0,0.00013834,2]
[332219896,1721047833442,-500.0,0.00013834,2]
[332219897,1721047833452,-1114.42,0.00013834,2]
[332219898,1721047833461,-500.0,0.00013834,2]
[332219899,1721047833470,-1015.41,0.00013834,2]
[332219900,1721047833481,-1892.81,0.00013834,2]
[332219901,1721047833490,-172.02,0.00013834,2]
[332219902,1721047833503,-150.0,0.00013846,2]
[332219903,1721047833512,-202.11866717,0.00013859,2]
[332219904,1721047833522,-1830.0,0.0001386,2]
[332219905,1721047833532,-1660.0,0.0001386,2]
[332219906,1721047833543,-449.0,0.0001386,2]
[332219907,1721047833554,-619.0,0.0001386,2]
[332219908,1721047833564,-444.0,0.0001386,2]
[332219909,1721047833575,-809.0,0.0001386,2]
[332219910,1721047833584,-1350.0,0.0001386,2]
[332219911,1721047833593,-2392.646,0.0001386,2]
[332219912,1721047833603,-1990.0,0.0001386,2]
[332219913,1721047833612,-3277.0,0.0001386,2]
[332219914,1721047833622,-549.0,0.0001386,2]
[332219915,1721047833632,-2641.92314,0.0001386,2]
[332219916,1721047833641,-1920.4044,0.00013863,2]
[332219917,1721047833651,-200.22283322,0.00013879,2]
[332219918,1721047833661,-416.93418921,0.00013879,2]
[332219919,1721047833671,-193.53969456,0.00013879,2]
[332219920,1721047833682,-502.67807587,0.00013879,2]
[332219921,1721047833691,-500.0,0.00013879,2]
[332219922,1721047833701,-316.32,0.00013879,2]
[332219923,1721047833711,-577.33502531,0.00013879,2]
[332219924,1721047833721,-500.0,0.00013879,2]
[332219925,1721047833731,-500.0,0.00013879,2]
[332219926,1721047833747,-500.0,0.00013879,2]
[332219927,1721047833760,-500.0,0.00013879,2]
[332219928,1721047833773,-322.38065808,0.00013879,2]
[332219929,1721047833786,-239.77116894,0.00013879,2]
[332219930,1721047833795,-584.63,0.00013879,2]
[332219931,1721047833807,-629.44,0.00013879,2]
[332219932,1721047833816,-736.43,0.00013889,2]
[332219933,1721047833825,-500.0,0.00013889,2]
[332219934,1721047833835,-500.0,0.00013889,2]
[332219935,1721047833845,-500.0,0.00013889,2]
[332219936,1721047833855,-500.0,0.00013889,2]
[332219937,1721047833866,-500.0,0.00013889,2]
[332219938,1721047833876,-500.0,0.00013889,2]
[332219939,1721047833887,-1114.42,0.00013889,2]
[332219940,1721047833897,-500.0,0.00013889,2]
[332219941,1721047833907,-806.9523702,0.00013889,2]
[332219942,1721047833920,-208.4576298,0.00013889,2]
[332219943,1721047833931,-56.32814048,0.00013889,2]
[332219944,1721047833943,-674.0,0.00013889,2]
[332219945,1721047833959,-341.42630098,0.00013889,2]
[332219956,1721047838205,-417.84487201,0.00013889,2]
[332219958,1721047838216,-403.21068653,0.00013889,2]
[332219959,1721047838226,-1000.0,0.000139,2]
[332219960,1721047838235,-1279.1898,0.000139,2]
[332219961,1721047838245,-156.0208,0.000139,2]
[332219962,1721047838254,-202.11866717,0.000139,2]
[332219963,1721047838263,-162.63608918,0.000139,2]
[332219964,1721047838273,-6260.55422,0.000139,2]
[332219965,1721047838282,-418.7416023,0.00013907,2]
[332219966,1721047838291,-234.63,0.00013934,2]
[332219967,1721047838300,-500.0,0.00013934,2]
[332219968,1721047838309,-500.0,0.00013934,2]
[332219969,1721047838319,-500.0,0.00013934,2]
[332219970,1721047838329,-500.0,0.00013934,2]
[332219971,1721047838338,-629.44,0.00013934,2]
[332219972,1721047838347,-736.43,0.00013944,2]
[332219973,1721047838357,-500.0,0.00013944,2]
[332219974,1721047838367,-500.0,0.00013944,2]
[332219975,1721047838376,-500.0,0.00013944,2]
[332219976,1721047838386,-500.0,0.00013944,2]
[332219977,1721047838395,-500.0,0.00013944,2]
[332219978,1721047838405,-500.0,0.00013944,2]
[332219979,1721047838414,-1114.42,0.00013944,2]
[332219980,1721047838423,-500.0,0.00013944,2]
[332219981,1721047838616,-1892.81,0.00013944,2]
[332219982,1721047838626,-500.0,0.00013989,2]
[332219983,1721047838635,-629.44,0.00013989,2]
[332219984,1721047838645,-156.0,0.00013989,2]
[332219985,1721047838654,-210.77020957,0.0001399,2]
[332219987,1721047838663,-2778.0804738,0.00013995,2]
[332219989,1721047838672,-598.6631722,0.00013995,2]
[332219991,1721047838683,-31291.3822194,0.00013995,2]
[332219993,1721047838692,-719.13100124,0.00013995,2]
[332219995,1721047838704,-4334.9976265,0.00013995,2]
[332219997,1721047838714,-3203.05327326,0.00013997,2]
[332219999,1721047838723,-736.43,0.00013998,2]
[332220001,1721047838732,-500.0,0.00013998,2]
[332220003,1721047838741,-374.22,0.00013998,2]
[332220005,1721047838751,-500.0,0.00013998,2]
[332220007,1721047838760,-500.0,0.00013998,2]
[332220009,1721047838770,-500.0,0.00013998,2]
[332220011,1721047838779,-500.0,0.00013998,2]
[332220013,1721047838789,-1114.42,0.00013998,2]
[332220015,1721047838798,-500.0,0.00013998,2]
[332220017,1721047838808,-1892.81,0.00013998,2]
[332220019,1721047838817,-316.49008526,0.00013999,2]
[332220021,1721047838826,-1064.40851654,0.00013999,5]
[332220023,1721047838836,-500.0,0.00013999,2]
[332220025,1721047838845,-280.6834284,0.00013999,2]
[332220027,1721047838854,-500.0,0.00013999,2]
[332220029,1721047838863,-619.31146837,0.00013999,2]
[332220031,1721047838873,-179.92349648,0.00013999,2]
[332220033,1721047838882,-14082.99531039,0.00013999,2]
[332220035,1721047838891,-3801.23840353,0.00014,2]
[332220037,1721047838901,-134531.19488026,0.00014,2]
[332220039,1721047838911,-181632.08248328,0.00014,2]
[332220041,1721047838923,-646627.91729063,0.00014,2]
[332220043,1721047838942,-1008.78520512,0.00014,2]
[332220045,1721047838954,-816.70025,0.00014,2]
[332220046,1721047838970,-598.0,0.00014,2]
[332220047,1721047838981,-3643.60526787,0.00014,2]
[332220048,1721047838996,-5243.22356511,0.00014,2]
[332220049,1721047839008,-2154.97466496,0.00014,2]
[332220050,1721047839020,-7072.08,0.00014,2]